bitfinex/quotes_BTCUSD_20251219
["timestamp","ask_amount","ask_price","bid_price","bid_amount"]
[1766114023034,0.01812146,86602.0,86584.0,0.01103]
[1766114023237,0.00588,86601.0,86584.0,0.01103]
[1766114023913,0.23092537,86609.0,86583.0,0.01154961]
[1766114023914,0.50236923,86618.0,86597.0,0.01154774]
[1766114024041,0.50236923,86618.0,86597.0,0.00495]
[1766114024042,0.00588,86617.0,86597.0,0.00495]
[1766114024247,0.00588,86617.0,86584.0,0.01385937]
[1766114024248,1.07859627,86608.0,86586.0,0.00588]
[1766114024469,0.00588,86607.0,86586.0,0.00588]
[1766114024671,0.01154654,86606.0,86586.0,0.00588]
[1766114024847,0.00588,86607.0,86587.0,0.00385]
[1766114025053,0.0059896,86607.0,86589.0,0.04622007]
[1766114025256,0.0021396,86607.0,86589.0,0.04622007]
[1766114025476,0.0021396,86607.0,86586.0,0.00588]
[1766114025680,0.00588,86606.0,86586.0,0.00588]
[1766114025881,0.00588,86606.0,86586.0,0.0059896]
[1766114026289,0.00588,86605.0,86589.0,0.04622007]
[1766114026761,0.0181182,86611.0,86590.0,0.01154867]
[1766114026964,0.00588,86615.0,86596.0,0.01154787]
[1766114027239,0.00588,86615.0,86594.0,0.00588]
[1766114027584,0.00588,86615.0,86594.0,0.01742814]
[1766114027787,0.00588,86615.0,86594.0,0.00588]
[1766114028597,0.01154641,86607.0,86586.0,0.0001096]
[1766114028834,0.00076274,86587.0,86586.0,0.0001096]
[1766114029036,7.4e-07,86587.0,86586.0,0.0001096]
[1766114029209,0.00588074,86587.0,86560.0,0.00011]
[1766114029407,0.00588,86587.0,86561.0,0.00011]
[1766114029619,0.01155107,86572.0,86560.0,0.00010972]
[1766114029820,0.23105008,86562.0,86560.0,0.00010972]
[1766114030059,0.01743254,86561.0,86533.0,0.01155628]
[1766114030237,0.01743254,86561.0,86531.0,0.0643815]
[1766114030238,0.01155348,86554.0,86534.0,0.00011]
[1766114030422,0.00588,86553.0,86534.0,0.00011]
[1766114030643,0.00588,86553.0,86534.0,0.01166615]
[1766114030847,0.00588,86553.0,86534.0,0.00011]
[1766114031044,0.01155388,86551.0,86524.0,0.05216]
[1766114031245,0.00588,86553.0,86529.0,0.01155681]
[1766114031449,0.01155374,86552.0,86528.0,0.05777702]
[1766114031647,0.01155401,86550.0,86524.0,0.01743748]
[1766114031885,0.01155414,86549.0,86524.0,0.01754748]
[1766114032085,0.05205,86548.0,86532.0,0.00011]
[1766114032477,0.05205,86548.0,86532.0,0.01166641]
[1766114032875,0.05205,86548.0,86532.0,0.00011]
[1766114033459,0.23107104,86554.0,86532.0,0.00011]
[1766114033460,0.011662,86561.0,86532.0,0.00011]
[1766114033636,0.04628,86557.0,86548.0,0.00015721]
[1766114033836,0.04628,86557.0,86535.0,0.01155601]
[1766114034041,0.04628,86557.0,86533.0,0.04622007]
[1766114034042,0.01155334,86555.0,86533.0,0.04622007]
[1766114034189,0.04628,86557.0,86533.0,0.05777635]
[1766114034390,0.05216,86556.0,86534.0,0.01155615]
[1766114034587,0.05216,86556.0,86526.0,0.00588]
[1766114034785,0.24262803,86553.0,86528.0,0.01155695]
[1766114035097,0.01155388,86551.0,86527.0,0.01155708]
[1766114035299,0.01155441,86547.0,86526.0,0.00588]
[1766114035556,0.00588,86546.0,86526.0,0.00588]
[1766114035700,0.00588,86546.0,86524.0,0.02427164]
[1766114035902,0.00588,86546.0,86523.0,0.02427164]
[1766114036464,0.00588,86546.0,86514.0,0.01155882]
[1766114036465,0.01155561,86538.0,86514.0,0.01155882]
[1766114036744,0.00588,86537.0,86513.0,0.01743895]
[1766114036965,0.00588,86537.0,86514.0,0.01155882]
[1766114037167,0.00588,86537.0,86516.0,0.01155855]
[1766114037342,0.01155494,86543.0,86519.0,0.01155815]
[1766114037549,0.05777488,86544.0,86519.0,0.01155815]
[1766114037728,0.05777488,86544.0,86514.0,0.04622007]
[1766114037729,0.01155641,86532.0,86514.0,0.04622007]
[1766114037926,0.00588,86531.0,86514.0,0.04622007]
[1766114038553,0.00588,86531.0,86502.0,0.03030002]
[1766114038554,0.00588,86531.0,86507.0,0.01155975]
[1766114038822,0.9193519,86530.0,86503.0,0.10226029]
[1766114038993,0.01155735,86525.0,86503.0,0.0907]
[1766114039210,0.23116844,86517.0,86498.0,0.03030002]
[1766114039354,0.01155989,86506.0,86488.0,0.04622007]
[1766114039556,0.9193519,86510.0,86488.0,0.04622007]
[1766114039557,0.00588,86505.0,86488.0,0.04622007]
[1766114039931,0.57937,86505.0,86478.0,0.04622007]
[1766114040132,0.9193519,86500.0,86478.0,0.04622007]
[1766114040320,0.24277221,86501.0,86478.0,0.04622007]
[1766114040463,0.01156082,86499.0,86474.0,0.01156416]
[1766114040665,0.01744096,86498.0,86474.0,0.01193001]
[1766114040862,0.00588,86498.0,86478.0,0.01156363]
[1766114041096,0.00588,86498.0,86476.0,0.0115639]
[1766114041285,0.05216,86497.0,86477.0,0.07166035]
[1766114041488,0.05216,86497.0,86477.0,0.05778383]
[1766114041761,0.01156216,86489.0,86474.0,0.00036585]
[1766114041982,0.00588,86488.0,86474.0,0.00036585]
[1766114042747,0.9193519,86490.0,86474.0,0.00036585]
[1766114042952,0.05216,86489.0,86474.0,0.00036585]
[1766114044657,0.01156229,86488.0,86474.0,0.00036585]
[1766114044879,0.01156296,86483.0,86474.0,0.00036585]
[1766114045013,0.0577837,86478.0,86454.0,0.01156684]
[1766114045215,0.0577837,86478.0,86454.0,0.00010965]
[1766114045535,0.04622007,86478.0,86456.0,0.01156657]
[1766114045881,0.04591,86488.0,86478.0,0.001099]
[1766114046089,0.00588,86487.0,86478.0,0.001099]
[1766114046312,0.00588,86487.0,86469.0,0.24285988]
[1766114046541,0.00588,86487.0,86465.0,0.24287153]
[1766114046758,0.00588,86487.0,86463.0,0.06366571]
[1766114046992,0.00588,86487.0,86463.0,0.01156564]
[1766114047215,0.00484514,86487.0,86466.0,0.01156523]
[1766114047408,0.00484514,86487.0,86466.0,0.24286865]
[1766114047842,0.00484514,86487.0,86466.0,0.01156523]
[1766114048012,0.05216,86486.0,86468.0,0.01156497]
[1766114048234,0.05216,86486.0,86463.0,0.24287752]
[1766114048430,0.01156363,86478.0,86454.0,0.01167649]
[1766114048591,0.00588,86477.0,86454.0,0.09080965]
[1766114048799,0.00588,86477.0,86454.0,0.00010965]
[1766114049037,0.81403878,86474.0,86454.0,0.00010965]
[1766114049351,0.57119,86474.0,86454.0,0.00010965]
[1766114049554,0.0115643,86473.0,86454.0,0.00010965]
[1766114049753,0.58275416,86474.0,86454.0,0.00010965]
[1766114049951,0.9193519,86470.0,86454.0,0.00010965]
[1766114050112,0.0522,86469.0,86454.0,0.00010965]
[1766114051361,0.23130055,86468.0,86454.0,0.00010965]
[1766114051566,0.0522,86469.0,86454.0,0.00010965]
[1766114052408,0.06376483,86469.0,86454.0,0.00010965]
[1766114052613,0.0522,86469.0,86454.0,0.00010965]
[1766114053337,0.01156497,86468.0,86454.0,0.00010965]
[1766114053589,0.81405311,86467.0,86454.0,0.00010965]
[1766114053764,0.23130495,86466.0,86454.0,0.00010965]
[1766114053971,0.48359,86465.0,86454.0,0.00010965]
[1766114054168,0.63495,86464.0,86454.0,0.00010965]
[1766114054901,0.6465155,86464.0,86454.0,0.00010965]
[1766114055107,0.6465155,86464.0,86440.0,0.00296148]
[1766114055108,0.04622007,86455.0,86440.0,0.00296148]
[1766114055257,0.00588,86454.0,86440.0,0.00332776]
[1766114055460,0.01744684,86454.0,86440.0,0.00332776]
[1766114055660,0.01744684,86454.0,86426.0,0.01157059]
[1766114055661,0.28915961,86442.0,86420.0,0.00011]
[1766114055864,0.28915961,86442.0,86404.0,0.0004]
[1766114055865,1.06634,86454.0,86442.0,0.00084444]
[1766114056059,0.04632,86444.0,86442.0,4.17e-06]
[1766114056260,0.01156804,86445.0,86442.0,4.17e-06]
[1766114056261,1.11854,86443.0,86442.0,4.17e-06]
[1766114056551,0.00588,86443.0,86442.0,4.17e-06]
[1766114056750,0.0115663,86458.0,86442.0,4.17e-06]
[1766114056751,0.24290576,86454.0,86442.0,4.17e-06]
[1766114056873,0.01156657,86456.0,86442.0,4.17e-06]
[1766114056874,0.08191706,86453.0,86442.0,4.17e-06]
[1766114057222,0.59431737,86450.0,86442.0,4.17e-06]
[1766114057380,0.04622007,86443.0,86442.0,4.17e-06]
[1766114057583,0.54066447,86443.0,86442.0,4.17e-06]
[1766114057770,1.02425447,86443.0,86442.0,4.17e-06]
[1766114058918,1.07057447,86443.0,86442.0,4.17e-06]
[1766114059272,1.12059286,86443.0,86442.0,4.17e-06]
[1766114060271,1.01837447,86443.0,86442.0,4.17e-06]
[1766114060541,1.07057447,86443.0,86442.0,4.17e-06]
[1766114060738,1.01837447,86443.0,86442.0,4.17e-06]
[1766114061277,1.07057447,86443.0,86442.0,4.17e-06]
[1766114062197,1.01837447,86443.0,86442.0,4.17e-06]
[1766114062441,1.07057447,86443.0,86442.0,4.17e-06]
[1766114062951,0.53579,86443.0,86442.0,4.17e-06]
[1766114063492,0.01156778,86447.0,86442.0,4.17e-06]
[1766114063493,0.74464908,86453.0,86442.0,4.17e-06]
[1766114063622,0.04622007,86449.0,86442.0,4.17e-06]
[1766114063827,0.01156804,86445.0,86442.0,4.17e-06]
[1766114064049,0.48359,86446.0,86442.0,4.17e-06]
[1766114064252,0.01156804,86445.0,86442.0,4.17e-06]
[1766114064462,0.24293147,86445.0,86442.0,4.17e-06]
[1766114064662,0.01156804,86445.0,86442.0,4.17e-06]
[1766114065038,0.00588,86444.0,86442.0,4.17e-06]
[1766114065442,0.00588,86443.0,86442.0,4.17e-06]
[1766114066144,0.62786328,86460.0,86442.0,4.17e-06]
[1766114066145,0.24284637,86475.0,86450.0,0.25004737]
[1766114066328,0.04632,86469.0,86442.0,4.17e-06]
[1766114066526,0.04632,86469.0,86449.0,0.23134984]
[1766114066795,0.04632,86469.0,86446.0,0.01156791]
[1766114066796,0.04632,86469.0,86447.0,0.23848]
[1766114066983,0.04622007,86456.0,86442.0,4.17e-06]
[1766114067127,0.00588,86455.0,86442.0,4.17e-06]
[1766114067581,0.01156684,86454.0,86442.0,4.17e-06]
[1766114067733,0.24878177,86455.0,86442.0,4.17e-06]
[1766114067929,0.00588,86455.0,86442.0,4.17e-06]
[1766114068134,0.04622007,86484.0,86442.0,4.17e-06]
[1766114068372,0.01156523,86466.0,86443.0,0.25004831]
[1766114068578,0.00588,86465.0,86446.0,0.23848]
[1766114069489,0.00588,86465.0,86442.0,0.01157262]
[1766114069700,0.00588,86465.0,86444.0,0.23848]
[1766114069904,0.01744537,86465.0,86444.0,0.23848]
[1766114070082,0.00588,86465.0,86444.0,0.23848]
[1766114070281,0.01744537,86465.0,86444.0,0.23848]
[1766114070487,0.0115655,86464.0,86444.0,0.23848]
[1766114070685,0.00588,86465.0,86444.0,0.23848]
[1766114071270,0.04622007,86457.0,86442.0,4.17e-06]
[1766114071618,0.00588,86456.0,86442.0,4.17e-06]
[1766114073995,0.01156711,86452.0,86442.0,4.17e-06]
[1766114074196,0.01156697,86453.0,86442.0,4.17e-06]
[1766114074408,0.01156711,86452.0,86442.0,4.17e-06]
[1766114074625,0.01156751,86449.0,86442.0,4.17e-06]
[1766114074786,0.00588,86448.0,86442.0,4.17e-06]
[1766114076044,0.01156778,86447.0,86442.0,4.17e-06]
[1766114076240,0.01156804,86445.0,86442.0,4.17e-06]
[1766114076552,0.23136633,86443.0,86442.0,4.17e-06]
[1766114076753,1.29770633,86443.0,86442.0,4.17e-06]
[1766114077664,0.01156791,86446.0,86442.0,4.17e-06]
[1766114077986,0.81411609,86444.0,86442.0,4.17e-06]
[1766114078133,1.29770609,86444.0,86442.0,4.17e-06]
[1766114078690,1.06634,86447.0,86424.0,0.03051959]
[1766114078910,0.04622007,86434.0,86424.0,0.00036456]
[1766114079146,0.00588,86433.0,86424.0,0.00036456]
[1766114079566,0.00588,86433.0,86413.0,0.29341959]
[1766114079567,0.01157045,86427.0,86413.0,0.03051959]
[1766114079771,0.000364,86424.0,86412.0,0.0004]
[1766114080176,0.29518363,86426.0,86412.0,0.0004]
[1766114080381,0.01157072,86425.0,86412.0,0.0004]
[1766114080807,0.0522,86426.0,86412.0,0.0004]
[1766114083312,0.04632,86441.0,86427.0,0.24476]
[1766114083526,0.27755711,86454.0,86431.0,0.19844]
[1766114083527,0.00588,86443.0,86431.0,0.19844]
[1766114083736,0.00588,86442.0,86431.0,0.19844]
[1766114083953,0.04622007,86456.0,86437.0,0.01156911]
[1766114084123,0.01156564,86463.0,86441.0,0.17492]
[1766114084366,0.01156644,86457.0,86434.0,0.17492]
[1766114084595,0.0115663,86458.0,86435.0,0.01156938]
[1766114084799,0.24289292,86458.0,86434.0,0.41787986]
[1766114084928,0.0115663,86458.0,86435.0,0.01156938]
[1766114085128,0.24289341,86458.0,86435.0,0.01156938]
[1766114085352,0.01156577,86462.0,86437.0,0.18648911]
[1766114085553,0.0637659,86461.0,86439.0,0.01156885]
[1766114085756,0.0637659,86461.0,86438.0,0.24294846]
[1766114086001,0.67408335,86470.0,86448.0,0.24292026]
[1766114086199,0.67408335,86470.0,86435.0,0.03051959]
[1766114086200,0.04632,86467.0,86452.0,0.01156711]
[1766114086376,0.04632,86467.0,86453.0,0.16904]
[1766114087322,0.04632,86467.0,86444.0,0.26188261]
[1766114087527,0.04632,86467.0,86446.0,0.01156791]
[1766114087768,0.04632,86467.0,86446.0,0.41196553]
[1766114087957,0.04632,86467.0,86446.0,0.16904]
[1766114088206,1.21865328,86470.0,86447.0,0.24292327]
[1766114088374,0.00588,86466.0,86456.0,0.04622007]
[1766114088970,0.62786328,86470.0,86456.0,0.04622007]
[1766114089289,0.00588,86469.0,86456.0,0.04622007]
[1766114089454,0.00598941,86469.0,86456.0,0.04622007]
[1766114090257,0.00598941,86469.0,86456.0,0.04122007]
[1766114090560,0.00598941,86469.0,86456.0,0.04022007]
[1766114090761,0.00598941,86469.0,86451.0,0.04622007]
[1766114092497,0.0115651,86467.0,86447.0,0.16904]
[1766114092679,0.2428703,86466.0,86449.0,0.00588]
[1766114092882,0.2428703,86466.0,86449.0,0.00088]
[1766114093494,0.01156537,86465.0,86449.0,0.00088]
[1766114094048,0.2428703,86466.0,86449.0,0.00088]
[1766114094348,0.24286646,86468.0,86449.0,0.00088]
[1766114094477,0.01156523,86466.0,86446.0,0.00588]
[1766114095213,0.00598941,86469.0,86453.0,0.01156697]
[1766114095415,0.00598941,86469.0,86450.0,0.01156737]
[1766114095416,0.00010941,86469.0,86458.0,0.16904]
[1766114095614,0.00588,86472.0,86458.0,0.16904]
[1766114095615,0.00588,86472.0,86461.0,0.21026007]
[1766114096196,0.00588,86472.0,86455.0,0.01156671]
[1766114096421,0.00588,86472.0,86455.0,0.00010941]
[1766114097181,0.00588,86472.0,86456.0,0.16893]
[1766114097382,0.00588,86472.0,86458.0,0.16893]
[1766114097824,0.00588,86472.0,86458.0,0.16393]
[1766114098235,0.00588,86472.0,86459.0,0.01156617]
[1766114098475,0.01156269,86485.0,86463.0,0.01156564]
[1766114098627,0.00588,86484.0,86462.0,0.04622007]
[1766114098829,0.00588,86484.0,86463.0,0.01156564]
[1766114099233,0.00588,86484.0,86462.0,0.27753364]
[1766114099234,0.62786328,86500.0,86476.0,0.0115639]
[1766114099434,0.62786328,86500.0,86475.0,0.01156403]
[1766114099643,0.00588,86499.0,86478.0,0.23127257]
[1766114099850,0.00588,86499.0,86479.0,0.15805]
[1766114100053,0.00588,86499.0,86475.0,0.04622007]
[1766114100054,0.24274655,86510.0,86487.0,0.11741243]
[1766114100252,0.24274655,86510.0,86475.0,0.04622007]
[1766114100253,0.00588,86509.0,86475.0,0.04622007]
[1766114100417,0.00588,86509.0,86476.0,0.00588]
[1766114100418,0.001099,86487.0,86476.0,0.00588]
[1766114100620,0.00588,86496.0,86477.0,0.01244376]
[1766114100851,0.49264909,86512.0,86489.0,0.01156216]
[1766114101049,0.00588,86511.0,86491.0,0.10585]
[1766114101263,0.001099,86491.0,86476.0,0.24284141]
[1766114101462,0.001099,86491.0,86475.0,0.10585]
[1766114101681,0.001099,86491.0,86476.0,0.00588]
[1766114101856,0.01156109,86497.0,86476.0,0.00588]
[1766114102059,0.60235096,86498.0,86476.0,0.0115639]
[1766114102060,0.59079,86498.0,86476.0,0.0115639]
[1766114102258,0.00588,86502.0,86482.0,0.11741309]
[1766114102482,0.00588,86502.0,86484.0,0.01156283]
[1766114102723,0.6856427,86510.0,86480.0,0.04622007]
[1766114102724,0.00010973,86511.0,86495.0,0.04622007]
[1766114103001,0.62786328,86520.0,86501.0,0.10574]
[1766114103333,0.00588,86519.0,86501.0,0.11730055]
[1766114103522,0.00588,86519.0,86504.0,0.01156015]
[1766114103728,0.00588,86519.0,86505.0,0.00588]
[1766114103928,0.01155735,86525.0,86505.0,0.00588]
[1766114104086,0.00588,86523.0,86506.0,0.01155989]
[1766114104291,0.59971,86529.0,86505.0,0.01744002]
[1766114104292,0.05787628,86533.0,86512.0,0.10574]
[1766114104512,0.62786328,86530.0,86513.0,0.00588]
[1766114104712,1.73084996,86530.0,86513.0,0.00588]
[1766114104920,1.10298681,86529.0,86513.0,0.00588]
[1766114105328,0.00588,86532.0,86517.0,0.01155842]
[1766114105535,0.00588,86532.0,86512.0,0.01155909]
[1766114105730,0.00588,86532.0,86516.0,0.00588]
[1766114106282,0.01155695,86528.0,86503.0,0.10574]
[1766114106532,0.01155695,86528.0,86482.0,0.04086002]
[1766114106533,0.62786328,86513.0,86493.0,0.10574]
[1766114106732,0.01156015,86504.0,86493.0,0.00588]
[1766114106951,0.01744029,86503.0,86483.0,0.00588]
[1766114107180,0.00588,86503.0,86487.0,0.0577825]
[1766114107395,0.00588,86508.0,86491.0,0.10574]
[1766114107608,0.00588,86508.0,86503.0,0.001099]
[1766114107858,0.0181375,86522.0,86516.0,0.01155855]
[1766114108069,0.0907,86539.0,86521.0,0.04622007]
[1766114108070,0.00588,86539.0,86521.0,0.04622007]
[1766114108234,0.00588,86539.0,86522.0,0.0138693]
[1766114108400,0.00588,86539.0,86522.0,0.02542705]
[1766114108581,0.00588,86539.0,86522.0,0.0138693]
[1766114108825,0.00588,86539.0,86526.0,0.01155721]
[1766114109024,0.00588,86539.0,86526.0,0.00588]
[1766114109347,0.01155575,86537.0,86526.0,0.00588]
[1766114109702,0.00588,86539.0,86526.0,0.00588]
[1766114109703,0.01155561,86538.0,86526.0,0.00588]
[1766114110106,0.00588,86539.0,86526.0,0.00588]
[1766114110310,1.10298494,86543.0,86526.0,0.00588]
[1766114110311,0.01155321,86556.0,86527.0,0.05354]
[1766114110526,0.01155308,86557.0,86539.0,0.001099]
[1766114110703,0.01155281,86559.0,86538.0,0.00588]
[1766114110704,0.00588,86559.0,86538.0,0.00588]
[1766114110906,0.01155388,86551.0,86538.0,0.00588]
[1766114111172,0.01155494,86543.0,86518.0,0.09254007]
[1766114111318,0.59971,86542.0,86522.0,0.01155775]
[1766114111520,0.23110493,86541.0,86519.0,0.00588]
[1766114111842,0.01155521,86541.0,86519.0,0.00588]
[1766114112040,0.00588,86544.0,86522.0,0.23115387]
[1766114112264,0.00588,86544.0,86525.0,0.01155735]
[1766114112452,0.00588,86544.0,86526.0,0.23702423]
[1766114112609,0.00588,86544.0,86526.0,0.00588]
[1766114112812,0.46226,86539.0,86508.0,0.05334]
[1766114113014,0.04622007,86541.0,86501.0,0.23121073]
[1766114113015,1.04533,86529.0,86504.0,0.05788015]
[1766114113218,1.05688882,86514.0,86491.0,0.05788189]
[1766114113446,0.01155935,86510.0,86492.0,0.00588]
[1766114113755,0.01155989,86506.0,86492.0,0.00588]
[1766114113958,0.00588,86510.0,86492.0,0.00588]
[1766114114122,0.01155975,86507.0,86492.0,0.00588]
[1766114114325,1.04533,86509.0,86492.0,0.00588]
[1766114114565,0.01155962,86508.0,86492.0,0.00588]
[1766114115030,0.01155989,86506.0,86492.0,0.00588]
[1766114115171,1.28808015,86509.0,86491.0,0.00588]
[1766114115172,1.05688949,86509.0,86491.0,0.00588]
[1766114115380,0.01155989,86506.0,86491.0,0.00588]
[1766114115613,0.24275831,86506.0,86491.0,0.00588]
[1766114115774,1.04533,86509.0,86491.0,0.00588]
[1766114116185,0.58307,86508.0,86491.0,0.00588]
[1766114116585,0.59462962,86508.0,86491.0,0.00588]
[1766114117001,0.58307,86508.0,86491.0,0.00588]
[1766114117489,0.46226,86509.0,86490.0,0.24280185]
[1766114117490,1.04533,86509.0,86490.0,0.24280185]
[1766114117763,0.00588,86510.0,86492.0,0.01156176]
[1766114118010,0.00588,86510.0,86489.0,0.00588]
[1766114118232,0.00588,86510.0,86490.0,0.01156203]
[1766114118458,0.04632,86516.0,86501.0,0.04622007]
[1766114118670,0.0522,86516.0,86499.0,0.04622007]
[1766114119003,0.0522,86516.0,86498.0,0.00588]
[1766114119004,0.58307,86515.0,86498.0,0.00588]
[1766114119208,1.04533,86515.0,86498.0,0.00588]
[1766114119696,1.05688868,86515.0,86498.0,0.00588]
[1766114119960,1.04533,86515.0,86498.0,0.00588]
[1766114120170,0.06375855,86516.0,86498.0,0.00588]
[1766114120171,0.0522,86516.0,86498.0,0.00588]
[1766114120777,0.23114193,86527.0,86516.0,0.001099]
[1766114120923,0.00588,86526.0,86509.0,0.00588]
[1766114121478,0.01155802,86520.0,86509.0,0.00588]
[1766114121678,0.59462815,86519.0,86509.0,0.00588]
[1766114121836,0.58307,86519.0,86506.0,0.00588]
[1766114122211,1.09012328,86520.0,86506.0,0.00588]
[1766114122409,0.01155481,86544.0,86521.0,0.01155788]
[1766114122608,0.00588,86543.0,86522.0,0.0197493]
[1766114122836,0.00588,86543.0,86523.0,0.01155762]
[1766114123009,0.00588,86543.0,86524.0,0.01155748]
[1766114123225,0.00588,86543.0,86525.0,0.01386882]
[1766114123353,0.00588,86543.0,86524.0,0.00010973]
[1766114123780,0.01743494,86543.0,86524.0,0.00010973]
[1766114124015,0.00588,86543.0,86524.0,0.00010973]
[1766114124192,0.01743494,86543.0,86524.0,0.00010973]
[1766114124410,0.00588,86543.0,86524.0,0.00010973]
[1766114124615,0.01743494,86543.0,86524.0,0.00010973]
[1766114124992,0.59462508,86542.0,86524.0,0.00010973]
[1766114125235,0.00588,86543.0,86524.0,0.00010973]
[1766114125445,0.01743494,86543.0,86524.0,0.00010973]
[1766114125932,0.01155508,86542.0,86524.0,0.00010973]
[1766114126557,0.24853441,86543.0,86524.0,0.00010973]
[1766114127050,1.05688521,86541.0,86524.0,0.00010973]
[1766114127196,0.01155601,86535.0,86524.0,0.00010973]
[1766114127411,0.01155615,86534.0,86525.0,0.00588]
[1766114127620,0.58307,86537.0,86505.0,0.00588]
[1766114127621,0.46226,86519.0,86505.0,0.00588]
[1766114127845,0.01155868,86515.0,86504.0,0.00588]
[1766114128052,0.01155868,86515.0,86489.0,0.03036986]
[1766114128053,0.01155975,86507.0,86489.0,0.03036986]
[1766114128248,0.01156082,86499.0,86478.0,0.07664986]
[1766114128514,0.01156096,86498.0,86474.0,0.03036986]
[1766114128698,0.01156256,86486.0,86465.0,0.03036986]
[1766114128931,0.00588,86486.0,86466.0,0.01156523]
[1766114129129,0.00588,86486.0,86461.0,0.2313173]
[1766114129130,0.0115639,86476.0,86457.0,0.03036986]
[1766114129411,0.58307,86479.0,86462.0,0.04622007]
[1766114129614,0.46226,86480.0,86462.0,0.01156577]
[1766114129866,0.46226,86480.0,86458.0,0.00588]
[1766114129998,0.46226,86480.0,86459.0,0.01156617]
[1766114130204,0.46226,86480.0,86461.0,0.0115659]
[1766114130399,0.46226,86480.0,86462.0,0.01156577]
[1766114130940,0.46226,86480.0,86464.0,0.0115655]
[1766114131257,0.00588,86487.0,86468.0,0.01156497]
[1766114131448,0.00588,86487.0,86468.0,0.01277497]
[1766114131654,0.00588,86487.0,86473.0,0.0115643]
[1766114131878,0.00588,86487.0,86469.0,0.01277483]
[1766114132153,0.00588,86487.0,86473.0,0.0115643]
[1766114132359,0.01744243,86487.0,86469.0,0.00121]
[1766114132577,0.01156256,86486.0,86463.0,0.05778571]
[1766114132754,1.05689269,86485.0,86468.0,0.00588]
[1766114132953,1.04533,86485.0,86468.0,0.00588]
[1766114133117,0.00588,86487.0,86468.0,0.00588]
[1766114133608,0.01744243,86487.0,86468.0,0.00588]
[1766114133821,1.04533,86486.0,86468.0,0.00588]
[1766114134396,0.00588,86487.0,86468.0,0.01744497]
[1766114134631,0.00588,86487.0,86470.0,0.0115647]
[1766114134766,0.00588,86487.0,86471.0,0.01156457]
[1766114134971,0.01744243,86487.0,86468.0,0.00588]
[1766114135187,0.01156269,86485.0,86468.0,0.00588]
[1766114135640,0.01156256,86486.0,86468.0,0.00588]
[1766114135845,0.24869179,86487.0,86455.0,0.24290036]
[1766114135846,0.46226,86480.0,86455.0,0.24290036]
[1766114136130,0.00101216,86468.0,86459.0,0.00588]
[1766114136305,0.24284251,86476.0,86455.0,0.01156671]
[1766114136306,0.58307,86476.0,86455.0,0.01156671]
[1766114136630,0.00588,86479.0,86459.0,0.00121]
[1766114136928,0.01156363,86478.0,86459.0,0.00588]
[1766114137073,1.05121,86479.0,86459.0,0.00588]
[1766114137286,1.0627735,86479.0,86459.0,0.00588]
[1766114137908,0.01156363,86478.0,86459.0,0.00588]
[1766114138114,0.01156363,86478.0,86455.0,0.24290008]
[1766114138115,0.0115643,86473.0,86451.0,0.00121]
[1766114138319,1.51331475,86470.0,86458.0,0.00588041]
[1766114138601,1.51331475,86470.0,86458.0,4.1e-07]
[1766114138602,0.01156483,86469.0,86458.0,4.1e-07]
[1766114138772,0.0115651,86467.0,86458.0,4.1e-07]
[1766114138974,0.58307,86469.0,86458.0,4.1e-07]
[1766114139276,0.46226,86468.0,86458.0,4.1e-07]
[1766114139626,0.58307,86467.0,86458.0,4.1e-07]
[1766114139825,0.5946351,86467.0,86458.0,4.1e-07]
[1766114140246,0.23132151,86460.0,86458.0,4.1e-07]
[1766114140460,0.00588,86459.0,86458.0,4.1e-07]
[1766114140700,0.24288716,86461.0,86458.0,4.1e-07]
[1766114140895,0.46814,86459.0,86458.0,4.1e-07]
[1766114141313,0.00588,86459.0,86458.0,4.1e-07]
[1766114141789,0.00588,86465.0,86459.0,0.00012949]
[1766114142007,0.00588,86465.0,86458.0,4.1e-07]
[1766114142213,0.0115655,86464.0,86458.0,4.1e-07]
[1766114142410,0.59463564,86463.0,86458.0,4.1e-07]
[1766114142648,0.01156577,86462.0,86458.0,4.1e-07]
[1766114142850,0.46226,86464.0,86458.0,4.1e-07]
[1766114143056,0.01744537,86465.0,86458.0,4.1e-07]
[1766114143267,0.5953359,86461.0,86458.0,4.1e-07]
[1766114143751,1.29895162,86460.0,86458.0,4.1e-07]
[1766114144758,0.71518147,86460.0,86458.0,4.1e-07]
[1766114146010,0.00588,86459.0,86458.0,4.1e-07]
[1766114146780,0.23720351,86459.0,86458.0,4.1e-07]
[1766114147327,0.01148237,86436.0,86418.0,0.04632]
[1766114147527,0.01148237,86436.0,86419.0,0.00050955]
[1766114147528,0.24296599,86432.0,86419.0,0.00050955]
[1766114147734,0.00588,86436.0,86419.0,0.00050955]
[1766114147890,0.01744925,86436.0,86419.0,0.00050955]
[1766114148089,0.01156952,86434.0,86418.0,0.04632]
[1766114148288,0.00010953,86434.0,86413.0,0.01745233]
[1766114148511,0.00010953,86434.0,86412.0,0.2434215]
[1766114148512,0.48386,86427.0,86412.0,0.0004]
[1766114148725,0.58377,86422.0,86406.0,0.23146534]
[1766114148976,0.58377,86420.0,86406.0,0.01157327]
[1766114149155,0.58377,86420.0,86407.0,0.01157313]
[1766114149457,0.58377,86420.0,86409.0,0.24303023]
[1766114149679,0.58377,86420.0,86403.0,0.01157367]
[1766114149958,0.58377,86420.0,86404.0,0.00628]
[1766114149959,0.58377,86418.0,86404.0,0.00628]
[1766114150177,1.06763,86417.0,86404.0,0.00628]
[1766114150587,0.01157085,86424.0,86404.0,0.0004]
[1766114150588,0.00588,86419.0,86404.0,0.0004]
[1766114150738,0.24299693,86421.0,86396.0,0.00588]
[1766114150739,0.00588,86418.0,86396.0,0.00588]
[1766114150941,0.00588,86418.0,86392.0,0.0004]
[1766114151148,0.0115734,86405.0,86392.0,0.0004]
[1766114151371,0.96490012,86410.0,86374.0,0.01157755]
[1766114151372,0.0115746,86396.0,86374.0,0.01157755]
[1766114151550,0.58377,86390.0,86372.0,0.00588]
[1766114151752,0.58377,86390.0,86371.0,0.0004]
[1766114151753,0.48386,86389.0,86371.0,0.0004]
[1766114151953,0.48386,86383.0,86371.0,0.0004]
[1766114152294,0.48974,86383.0,86371.0,0.00076463]
[1766114152548,0.48386,86382.0,86362.0,0.0004]
[1766114152665,0.48386,86381.0,86362.0,0.0004]
[1766114152867,0.48386,86377.0,86362.0,0.0004]
[1766114153120,0.00588,86376.0,86362.0,0.0004]
[1766114153322,0.48386,86392.0,86374.0,0.01157755]
[1766114153504,0.05210007,86391.0,86374.0,0.00010983]
[1766114153895,0.58377,86390.0,86374.0,0.00010983]
[1766114154457,0.48386,86388.0,86374.0,0.00010983]
[1766114154601,1.06763,86388.0,86374.0,0.00010983]